bitfinex/quotes_SOLUSD_20250712
["timestamp","ask_amount","ask_price","bid_price","bid_amount"]
[1752340977735,5.43443046,159.68,159.67,119.52]
[1752340978509,10.04041225,159.68,159.67,119.52]
[1752340978911,10.04041225,159.68,159.67,31.68]
[1752340980213,0.82844867,159.68,159.67,31.68]
[1752340980524,10.04041225,159.68,159.67,31.68]
[1752340984731,10.04041225,159.68,159.65,27.0]
[1752340984943,4.60598179,159.66,159.65,27.0]
[1752340985149,5.27598179,159.66,159.65,27.0]
[1752340985835,5.27598179,159.66,159.65,58.68]
[1752340987941,5.88316194,159.66,159.65,58.68]
[1752340988820,5.27598179,159.66,159.65,58.68]
[1752340997744,4.60598179,159.66,159.65,59.36]
[1752340998956,4.60598179,159.66,159.65,58.68]
[1752341003569,0.71,159.67,159.65,58.68]
[1752341003759,4.60598179,159.66,159.65,58.68]
[1752341006050,4.60598179,159.66,159.65,58.72]
[1752341008976,2.9492907,159.66,159.65,58.72]
[1752341010450,11.95561147,159.68,159.65,59.4]
[1752341010679,2.9492907,159.66,159.65,59.4]
[1752341011776,3.6592907,159.66,159.65,27.04]
[1752341011974,3.6592907,159.66,159.65,58.72]
[1752341013373,2.9492907,159.66,159.65,58.72]
[1752341018574,2.9492907,159.66,159.65,59.44]
[1752341019271,2.9492907,159.66,159.65,58.72]
[1752341022278,2.9792907,159.66,159.65,58.72]
[1752341023451,2.9792907,159.66,159.65,59.44]
[1752341026280,0.03,159.66,159.65,59.44]
[1752341026574,2.9792907,159.66,159.65,58.72]
[1752341028381,3.6592907,159.66,159.65,27.04]
[1752341028674,3.6592907,159.66,159.65,58.72]
[1752341030981,2.9792907,159.66,159.65,58.72]
[1752341032973,2.9792907,159.66,159.65,59.44]
[1752341034566,2.9792907,159.66,159.65,58.72]
[1752341034768,3.6592907,159.66,159.65,58.72]
[1752341042794,5.1918907,159.66,159.63,27.06]
[1752341042997,2.9492907,159.64,159.59,0.72]
[1752341043294,0.60718015,159.63,159.6,31.68]
[1752341043482,0.60718015,159.64,159.6,31.68]
[1752341043679,0.68,159.63,159.6,31.68]
[1752341043881,0.60718015,159.62,159.6,32.4]
[1752341044102,0.60718015,159.62,159.61,27.0]
[1752341044473,3.55647085,159.62,159.61,27.0]
[1752341045786,17.56623365,159.62,159.61,31.68]
[1752341045994,5.76907085,159.62,159.61,31.68]
[1752341046981,2.9492907,159.62,159.61,31.68]
[1752341047176,1.30718015,159.65,159.61,32.38]
[1752341047487,2.9492907,159.62,159.61,31.68]
[1752341047999,2.9492907,159.62,159.61,32.38]
[1752341048205,2.9492907,159.62,159.61,31.68]
[1752341048387,3.6492907,159.62,159.61,31.68]
[1752341050983,2.9492907,159.62,159.61,31.68]
[1752341051210,3.55647085,159.62,159.61,31.68]
[1752341051384,4.25647085,159.62,159.61,31.68]
[1752341051590,3.6492907,159.62,159.61,31.68]
[1752341053715,0.7,159.63,159.61,31.68]
[1752341054007,0.63718015,159.66,159.62,0.7]
[1752341054182,0.63718015,159.66,159.63,31.68]
[1752341054382,0.63718015,159.66,159.64,0.7]
[1752341054596,0.63718015,159.66,159.65,31.68]
[1752341055501,3.58647085,159.66,159.65,31.68]
[1752341056419,3.58647085,159.66,159.65,58.68]
[1752341057823,0.63718015,159.66,159.65,59.38]
[1752341057988,0.03,159.66,159.65,59.38]
[1752341058304,2.9792907,159.66,159.65,59.38]
[1752341060802,0.03,159.66,159.65,59.38]
[1752341061131,2.9792907,159.66,159.65,59.38]
[1752341061414,0.03,159.66,159.65,59.38]
[1752341061792,2.9792907,159.66,159.65,59.38]
[1752341063415,2.9792907,159.66,159.65,27.0]
[1752341063590,2.9792907,159.66,159.65,59.38]
[1752341064421,3.6792907,159.66,159.65,27.0]
[1752341064604,3.6792907,159.66,159.65,58.68]
[1752341064792,2.9792907,159.66,159.65,58.68]
[1752341066793,4.63819075,159.66,159.65,58.68]
[1752341068914,0.03,159.66,159.65,58.68]
[1752341069122,4.63819075,159.66,159.65,58.68]
[1752341070496,4.63819075,159.66,159.65,59.38]
[1752341070808,0.03,159.66,159.65,58.68]
[1752341071014,4.63819075,159.66,159.65,59.38]
[1752341080113,0.03,159.66,159.65,58.68]
[1752341080318,4.63819075,159.66,159.65,59.35]
[1752341085426,0.03,159.66,159.65,59.35]
[1752341087210,2.97773872,159.66,159.65,59.35]
[1752341090752,0.03,159.66,159.65,59.35]
[1752341091328,0.03,159.66,159.65,147.19]
[1752341092246,2.97773872,159.66,159.65,147.19]
[1752341093111,0.03,159.66,159.65,147.19]
[1752341093306,2.97773872,159.66,159.65,147.19]
[1752341096743,2.97773872,159.66,159.65,115.51]
[1752341096921,3.67773872,159.66,159.65,146.5]
[1752341097123,3.67773872,159.66,159.65,58.66]
[1752341100334,3.67773872,159.66,159.63,0.06]
[1752341100335,3.67773872,159.66,159.64,27.0]
[1752341100520,16.04587375,159.65,159.58,0.67]
[1752341100725,2.94773872,159.59,159.58,0.67]
[1752341101750,2.94773872,159.59,159.58,31.66]
[1752341102946,4.61204168,159.59,159.58,32.33]
[1752341103741,4.61204168,159.61,159.58,32.33]
[1752341103947,4.61204168,159.61,159.59,0.67]
[1752341104142,4.61204168,159.61,159.6,58.66]
[1752341104631,4.61204168,159.61,159.6,59.33]
[1752341105785,0.7,159.65,159.6,59.33]
[1752341105943,4.61204168,159.61,159.6,58.66]
[1752341106634,4.61204168,159.61,159.6,59.35]
[1752341113854,5.32204168,159.61,159.6,58.66]
[1752341119063,5.32204168,159.61,159.6,27.0]
[1752341119064,9.93408336,159.61,159.6,27.0]
[1752341119265,10.54126351,159.61,159.6,58.66]
[1752341119574,10.54126351,159.61,159.6,27.02]
[1752341119938,10.54126351,159.61,159.56,0.06]
[1752341120266,4.61204168,159.57,159.56,0.06]
[1752341120792,4.61204168,159.57,159.56,31.74]
[1752341122553,5.32204168,159.57,159.56,31.74]
[1752341122753,4.61204168,159.57,159.56,31.74]
[1752341124168,4.61204168,159.57,159.56,58.76]
[1752341130364,5.32204168,159.57,159.56,58.76]
[1752341131070,3.66289555,159.57,159.56,58.76]
[1752341131577,2.95289555,159.57,159.56,58.76]
[1752341132269,0.60718015,159.59,159.56,59.45]
[1752341132468,2.95289555,159.57,159.56,58.76]
[1752341133174,2.95289555,159.57,159.56,59.45]
[1752341134880,4.6121183,159.57,159.56,59.45]
[1752341138744,5.86929845,159.6,159.56,59.45]
[1752341139064,4.6121183,159.57,159.56,59.45]
[1752341147485,1.25718015,159.6,159.56,59.45]
[1752341147684,4.6121183,159.57,159.56,59.45]
[1752341154269,0.65,159.61,159.56,59.45]
[1752341154463,4.6121183,159.58,159.56,58.76]
[1752341154771,4.6121183,159.58,159.57,0.69]
[1752341155087,2.95128464,159.58,159.57,0.69]
[1752341155475,1.25718015,159.61,159.57,0.69]
[1752341155675,2.95128464,159.58,159.57,0.69]
[1752341155985,2.95128464,159.58,159.57,32.37]
[1752341157475,2.95128464,159.59,159.57,32.37]
[1752341157992,2.95128464,159.59,159.58,0.69]
[1752341161674,2.1914,159.62,159.58,88.53]
[1752341161675,2.95128464,159.62,159.58,88.53]
[1752341161880,2.95128464,159.62,159.59,31.66]
[1752341162085,0.03,159.63,159.59,32.35]
[1752341162296,2.95128464,159.62,159.6,0.69]
[1752341162600,2.95128464,159.62,159.61,31.66]
[1752341162789,2.95128464,159.62,159.61,32.35]
[1752341163694,0.03,159.63,159.61,32.35]
[1752341163893,0.03,159.63,159.62,1.3164879]
[1752341164775,0.03,159.63,159.62,5.92253253]
[1752341165595,0.03,159.63,159.62,22.7072165]
[1752341165898,0.03,159.63,159.62,126.38477187]
[1752341166073,0.03,159.63,159.62,136.7106286]
[1752341166275,0.03,159.63,159.62,113.33458397]
[1752341166507,0.03,159.63,159.62,118.5671165]
[1752341169677,0.03,159.63,159.62,113.96107187]
[1752341169870,0.03,159.63,159.62,144.5671165]
[1752341170093,0.03,159.63,159.62,121.0744599]
[1752341170294,0.03,159.63,159.62,121.7009478]
[1752341171082,0.03,159.66,159.65,114.0]
[1752341171279,0.03,159.66,159.65,151.35241481]
[1752341171489,0.03,159.66,159.65,151.42604463]
[1752341171880,0.03,159.66,159.65,168.2107286]
[1752341172599,0.03,159.66,159.65,136.0907286]
[1752341172780,0.03,159.66,159.65,168.2107286]
[1752341173182,0.03,159.66,159.65,142.2107286]
[1752341174595,0.03,159.66,159.65,137.60468397]
[1752341174904,0.03,159.66,159.65,142.2107286]
[1752341175111,0.03,159.66,159.65,137.60468397]
[1752341175283,0.03,159.66,159.65,142.2107286]
[1752341176304,0.03,159.66,159.65,137.60468397]
[1752341176508,0.03,159.66,159.65,142.2107286]
[1752341177201,0.03,159.66,159.65,120.82]
[1752341177408,0.03,159.66,159.65,120.12]
[1752341177796,4.63604463,159.66,159.65,120.12]
[1752341177987,5.34604463,159.66,159.65,120.12]
[1752341178406,0.74,159.66,159.65,120.12]
[1752341178608,5.34604463,159.66,159.65,120.12]
[1752341179012,0.03,159.66,159.65,120.12]
[1752341179197,4.63604463,159.66,159.65,120.12]
[1752341179594,0.03,159.66,159.65,120.12]
[1752341181913,4.63604463,159.66,159.65,120.12]
[1752341182422,0.03,159.66,159.65,120.12]
[1752341185532,5.34604463,159.66,159.65,120.12]
[1752341188030,5.34604463,159.66,159.65,147.12]
[1752341188803,5.34604463,159.66,159.65,59.12]
[1752341189917,0.74,159.66,159.65,59.12]
[1752341190110,5.34604463,159.66,159.65,59.12]
[1752341194019,0.74,159.66,159.65,59.12]
[1752341194326,4.63604463,159.66,159.65,59.12]
[1752341194535,0.74,159.66,159.65,59.12]
[1752341194721,4.63604463,159.66,159.65,59.12]
[1752341200733,0.03,159.66,159.65,59.12]
[1752341200931,4.63604463,159.66,159.65,59.12]
[1752341201841,5.31604463,159.66,159.65,59.12]
[1752341202337,4.63604463,159.66,159.65,59.12]
[1752341205043,0.03,159.66,159.65,59.81]
[1752341206634,0.03,159.66,159.65,147.81]
[1752341212841,0.03,159.66,159.65,147.12]
[1752341213240,4.63604463,159.66,159.65,147.12]
[1752341213834,5.31604463,159.66,159.65,147.12]
[1752341214444,5.31604463,159.66,159.65,27.0]
[1752341214750,5.31604463,159.66,159.65,58.96]
[1752341216749,7.43622478,159.66,159.65,58.96]
[1752341217132,7.43622478,159.66,159.64,27.0]
[1752341217348,5.28604463,159.65,159.64,27.0]
[1752341218358,5.28604463,159.65,159.64,58.96]
[1752341219338,28.7010286,159.65,159.62,27.0]
[1752341219651,4.60604463,159.63,159.62,27.0]
[1752341219952,5.28604463,159.63,159.62,27.0]
[1752341220533,5.28604463,159.63,159.62,58.96]
[1752341222443,9.89208926,159.63,159.59,0.30994677]
[1752341222645,1.28718015,159.62,159.6,27.0]
[1752341222849,0.68,159.61,159.6,27.0]
[1752341223045,2.2242,159.61,159.6,27.0]
[1752341223433,2.83138015,159.61,159.6,27.0]
[1752341223757,11.43628926,159.61,159.6,27.0]
[1752341223954,12.04346941,159.61,159.6,58.98]
[1752341224754,2.2242,159.61,159.6,58.98]
[1752341224960,11.43628926,159.61,159.6,58.98]
[1752341225758,16.53678939,159.61,159.6,58.98]
[1752341227649,33.32147336,159.61,159.6,58.98]
[1752341227962,16.78468397,159.6,159.58,27.02]
[1752341228134,21.99790875,159.59,159.56,0.06]
[1752341228338,1.29718015,159.59,159.57,32.0]
[1752341228667,0.60718015,159.59,159.57,32.0]
[1752341228842,4.60604463,159.58,159.57,32.72]
[1752341231454,4.60604463,159.58,159.57,32.0]
[1752341233450,4.60604463,159.58,159.57,32.72]
[1752341236379,1.29718015,159.63,159.57,32.72]
[1752341236553,4.60604463,159.6,159.58,0.72]
[1752341236742,4.60604463,159.61,159.59,32.02]
[1752341236944,4.60604463,159.62,159.6,0.72]
[1752341237243,1.29718015,159.64,159.61,32.74]
[1752341237471,4.60604463,159.62,159.61,32.74]
[1752341238652,0.69,159.64,159.61,32.74]
[1752341238843,4.60604463,159.62,159.61,32.74]
[1752341241465,0.69,159.64,159.61,32.74]
[1752341241649,4.60604463,159.62,159.61,32.74]
[1752341242888,4.60604463,159.62,159.61,32.8]
[1752341244083,4.60604463,159.62,159.61,59.82]
[1752341244956,4.60604463,159.62,159.61,59.1]
[1752341245156,5.29604463,159.62,159.61,27.08]
[1752341245370,5.29604463,159.62,159.61,59.06]
[1752341246367,4.60604463,159.62,159.61,59.06]
[1752341249079,0.03,159.63,159.61,59.06]
[1752341249282,4.60604463,159.62,159.61,59.78]
[1752341250277,4.60604463,159.62,159.61,59.06]
[1752341250886,0.03,159.63,159.61,59.06]
[1752341251058,4.60604463,159.62,159.61,59.06]
[1752341252184,4.60604463,159.62,159.61,27.02]
[1752341253062,5.29604463,159.62,159.61,27.02]
[1752341253262,5.29604463,159.62,159.61,58.98]
[1752341254384,4.60604463,159.62,159.61,58.98]
[1752341256183,27.29395338,159.62,159.61,27.02]
[1752341256374,27.29395338,159.62,159.61,58.96]
[1752341256578,22.68790875,159.62,159.61,58.96]
[1752341257805,27.29395338,159.62,159.61,58.96]
[1752341258774,22.68790875,159.62,159.61,58.96]
[1752341259276,27.29395338,159.62,159.61,58.96]
[1752341259481,16.78468397,159.61,159.59,27.02]
[1752341259660,9.81926941,159.6,159.59,27.02]
[1752341259862,10.50926941,159.6,159.59,27.02]
[1752341260288,16.78468397,159.59,159.57,27.02]
[1752341260588,5.90322478,159.58,159.57,27.02]
[1752341260793,5.90322478,159.58,159.57,59.04]
[1752341261391,22.68790875,159.58,159.57,59.04]
[1752341264091,22.68790875,159.58,159.56,27.08]
[1752341264400,5.29604463,159.57,159.56,27.08]
[1752341264787,22.0807286,159.57,159.56,27.08]
[1752341265291,22.68790875,159.57,159.56,59.1]
[1752341267185,16.78468397,159.56,159.54,27.02]
[1752341267390,0.69,159.56,159.54,27.02]
[1752341267572,4.60604463,159.55,159.54,27.02]
[1752341268380,5.29604463,159.55,159.54,27.02]
[1752341268599,5.29604463,159.55,159.54,59.02]
[1752341271977,4.60604463,159.55,159.54,59.02]
[1752341272176,4.60604463,159.55,159.54,59.74]
[1752341274504,0.69,159.58,159.54,59.74]
[1752341274712,4.60604463,159.55,159.54,59.74]
[1752341276120,0.69,159.58,159.54,59.74]
[1752341276297,4.60604463,159.55,159.54,59.02]
[1752341276985,4.60604463,159.55,159.54,59.74]
[1752341277304,5.29604463,159.55,159.54,27.02]
[1752341277612,5.29604463,159.55,159.54,59.72]
[1752341277613,4.60604463,159.55,159.54,59.72]
[1752341279511,4.60604463,159.56,159.54,59.72]
[1752341279818,4.60604463,159.56,159.55,0.72]
[1752341280508,4.60604463,159.58,159.55,0.72]
[1752341280825,4.60604463,159.58,159.56,32.0]
[1752341281005,4.60604463,159.59,159.57,0.72]
[1752341281319,4.60604463,159.6,159.58,32.0]
[1752341281501,4.60604463,159.6,159.59,0.72]
[1752341281886,0.03,159.62,159.59,0.72]
[1752341282084,0.03,159.62,159.6,31.98]
[1752341282524,4.63604463,159.62,159.61,0.72]
[1752341282822,0.03,159.62,159.61,0.72]
[1752341288310,0.03,159.62,159.61,1.34652715]
[1752341288728,0.03,159.62,159.61,0.62652715]
[1752341289018,0.03,159.62,159.61,1.33652715]
[1752341291918,0.03,159.62,159.61,0.71]
[1752341299303,0.03,159.62,159.61,93.94257178]
[1752341302007,0.03,159.62,159.61,110.72725575]
[1752341303227,0.03,159.62,159.61,112.29185575]
[1752341305025,0.03,159.62,159.61,131.07185575]
[1752341305334,0.03,159.62,159.61,130.4453286]
[1752341305535,0.03,159.62,159.61,125.83928397]
[1752341305742,0.03,159.62,159.61,138.95928397]
[1752341306039,0.03,159.62,159.61,143.5653286]
[1752341308510,0.03,159.62,159.61,88.71]
[1752341308710,0.03,159.62,159.61,120.59]
[1752341311739,0.03,159.62,159.61,125.19604463]
[1752341316343,0.03,159.62,159.61,120.59]
[1752341316537,0.03,159.62,159.61,119.88]
[1752341316740,0.03,159.62,159.61,121.18652715]
[1752341316930,0.03,159.62,159.61,120.56]
[1752341317857,0.03,159.62,159.61,119.88]
[1752341318146,0.03,159.62,159.61,121.18652715]
[1752341318345,0.03,159.62,159.61,120.56]
[1752341320251,0.03,159.62,159.61,147.56]
[1752341320449,0.03,159.62,159.61,152.16604463]
[1752341323728,0.03,159.62,159.61,168.9507286]
[1752341331564,0.03,159.62,159.61,187.7307286]
[1752341332654,0.03,159.62,159.61,147.56]
[1752341332852,0.03,159.62,159.61,152.16604463]
[1752341333049,0.03,159.62,159.61,147.56]
[1752341333673,0.03,159.62,159.61,151.48604463]
[1752341333841,0.03,159.62,159.61,146.88]
[1752341334038,0.03,159.62,159.61,151.48604463]
[1752341334761,0.03,159.62,159.61,152.16604463]
[1752341336457,0.03,159.62,159.61,168.9507286]
[1752341341451,0.03,159.62,159.61,187.7307286]
[1752341341654,0.03,159.62,159.61,151.48604463]
[1752341342766,0.03,159.62,159.61,146.88]
[1752341343264,0.71,159.62,159.61,146.88]
[1752341343577,0.03,159.62,159.61,187.7307286]
[1752341343759,0.03,159.63,159.62,104.75468397]
[1752341343953,0.03,159.63,159.62,142.5872165]
[1752341344159,0.03,159.63,159.62,141.9607286]
[1752341348480,0.03,159.63,159.62,87.97]
[1752341348787,0.74,159.63,159.62,120.4964879]
[1752341350387,0.03,159.63,159.62,120.4964879]
[1752341350690,0.03,159.63,159.62,125.10253253]
[1752341350889,0.03,159.63,159.62,124.47604463]
[1752341351068,0.03,159.63,159.62,119.87]
[1752341351267,0.03,159.63,159.62,120.4964879]
[1752341355796,0.03,159.63,159.62,125.10253253]
[1752341355971,0.03,159.63,159.62,124.47604463]
[1752341358800,0.03,159.63,159.62,119.87]
[1752341358972,0.03,159.63,159.62,125.10253253]
[1752341359175,0.03,159.63,159.62,125.15604463]
[1752341363816,0.03,159.63,159.62,120.55]
[1752341364106,0.03,159.63,159.62,125.15604463]
[1752341364297,0.03,159.63,159.62,119.87]
[1752341364492,0.03,159.63,159.62,120.4964879]
[1752341367482,0.03,159.63,159.62,125.10253253]
[1752341367681,0.03,159.63,159.62,124.47604463]
[1752341367881,0.03,159.63,159.62,119.87]
[1752341368105,0.03,159.63,159.62,125.10253253]
[1752341368402,0.03,159.63,159.62,124.47604463]
[1752341369006,0.74,159.63,159.62,119.87]
[1752341369183,0.74,159.63,159.62,120.4964879]
[1752341371008,0.03,159.63,159.62,120.4964879]
[1752341372406,0.03,159.63,159.62,125.10253253]
[1752341372597,0.03,159.63,159.62,124.47604463]
[1752341372917,0.03,159.63,159.62,123.49827505]
[1752341377409,0.03,159.63,159.62,123.55827505]
[1752341377713,0.03,159.63,159.62,140.34295902]
[1752341382214,0.03,159.63,159.62,159.12295902]
[1752341382610,0.03,159.63,159.62,156.17468397]
[1752341382804,0.03,159.63,159.62,159.12295902]
[1752341383200,0.03,159.63,159.62,122.87827505]
[1752341384437,0.03,159.63,159.62,123.58827505]
[1752341386807,0.03,159.63,159.62,119.81]
[1752341387009,0.03,159.63,159.62,120.4364879]
[1752341388497,0.73,159.63,159.62,120.4364879]
[1752341392419,0.03,159.63,159.62,120.4364879]
[1752341394117,0.73,159.63,159.62,120.4364879]
[1752341395832,0.03,159.63,159.62,120.4364879]
[1752341396709,0.03,159.63,159.62,124.09476295]
[1752341396906,0.03,159.63,159.62,122.75827505]
[1752341398831,0.03,159.63,159.62,123.46827505]
[1752341399708,0.03,159.63,159.62,122.75827505]
[1752341400534,0.03,159.63,159.62,119.81]
[1752341400736,0.03,159.63,159.62,123.38476295]
[1752341400935,0.03,159.63,159.62,122.75827505]
[1752341401237,0.03,159.63,159.62,119.81]
[1752341401406,0.73,159.63,159.62,120.4364879]
[1752341408948,0.03,159.63,159.62,120.4364879]
[1752341409948,0.75,159.63,159.62,120.4364879]
[1752341411328,3.69827505,159.63,159.62,119.81]
[1752341416746,3.69827505,159.63,159.62,31.84]
[1752341417452,0.75,159.63,159.62,31.84]
[1752341417646,3.69827505,159.63,159.62,31.84]
[1752341417853,0.75,159.63,159.62,31.84]
[1752341420637,3.69827505,159.63,159.62,31.84]
[1752341433176,0.75,159.63,159.62,31.84]
[1752341433374,3.69827505,159.63,159.62,31.84]
[1752341439179,20.48295902,159.63,159.62,31.84]
[1752341440073,21.99545902,159.63,159.62,31.84]
[1752341440261,21.99545902,159.63,159.61,27.0]
[1752341440262,16.78468397,159.62,159.61,27.0]
[1752341440461,32.83323937,159.62,159.61,27.0]
[1752341441475,32.83323937,159.62,159.61,31.78]
[1752341441675,32.83323937,159.62,159.58,27.12251342]
[1752341441871,2.94827505,159.59,159.58,27.12251342]
[1752341442268,3.64827505,159.59,159.58,27.02]
[1752341442869,3.64827505,159.59,159.58,58.8]
[1752341443068,2.94827505,159.59,159.58,58.8]
[1752341444684,0.7,159.61,159.58,58.8]
[1752341444892,2.94827505,159.6,159.58,59.46]
[1752341446299,2.94827505,159.59,159.58,59.46]
[1752341446797,4.61050089,159.59,159.58,59.46]
[1752341447878,0.7,159.61,159.58,59.46]
[1752341448185,4.61050089,159.59,159.58,59.46]
[1752341449797,4.61050089,159.59,159.58,58.8]
[1752341450003,5.31050089,159.59,159.58,58.8]
[1752341457095,22.09518486,159.59,159.58,58.8]
[1752341457681,16.78468397,159.58,159.56,0.06]
[1752341457886,16.78468397,159.56,159.55,27.02]
[1752341458218,5.31050089,159.56,159.55,27.02]
[1752341459003,5.31050089,159.56,159.55,58.8]
[1752341459506,10.40858229,159.56,159.55,58.8]
[1752341459687,5.31050089,159.56,159.55,58.8]
[1752341460792,4.61050089,159.56,159.55,59.46]
[1752341461311,4.61050089,159.57,159.55,59.46]
[1752341461507,4.61050089,159.57,159.55,58.8]
[1752341461715,0.7,159.61,159.56,0.66]
[1752341462007,4.61050089,159.59,159.57,31.78]
[1752341462218,4.61050089,159.59,159.58,0.66]
[1752341463197,4.61050089,159.59,159.57,31.78]
[1752341463402,4.61050089,159.58,159.57,31.78]
[1752341463618,4.61050089,159.58,159.57,32.44]
[1752341463804,4.61050089,159.59,159.57,32.44]
[1752341464009,4.61050089,159.59,159.58,0.66]
[1752341464324,4.64050089,159.62,159.58,1.28664494]
[1752341464491,4.64050089,159.62,159.59,32.44]
[1752341464694,4.64050089,159.62,159.59,31.78]
[1752341464915,4.61050089,159.61,159.6,0.66]
[1752341465498,0.03,159.62,159.6,1.28656641]
[1752341465704,0.03,159.62,159.61,31.78]
[1752341466013,4.64050089,159.62,159.61,31.78]
[1752341466528,4.64050089,159.62,159.61,32.46]
[1752341467222,0.03,159.62,159.61,32.46]
[1752341468195,0.03,159.62,159.61,33.08652715]
[1752341469420,0.03,159.62,159.61,32.46]
[1752341472032,4.64050089,159.62,159.61,31.78]
[1752341472605,5.32050089,159.62,159.61,31.78]
[1752341483015,26.71568575,159.62,159.61,31.78]
[1752341484321,1.5368,159.61,159.6,27.02]
[1752341484528,12.04498193,159.61,159.6,27.02]
[1752341485527,12.04498193,159.61,159.6,58.8]
[1752341486217,28.8296659,159.61,159.56,0.06]
[1752341486424,4.61050089,159.57,159.56,27.08]
[1752341487543,5.29050089,159.57,159.56,58.86]
[1752341488143,4.61050089,159.57,159.56,58.86]
[1752341488314,4.61050089,159.57,159.56,59.54]
[1752341489443,4.61050089,159.57,159.56,58.86]
[1752341491545,1.28718015,159.59,159.56,59.54]
[1752341491734,4.61050089,159.57,159.56,59.54]
[1752341494140,4.61050089,159.57,159.56,58.86]
[1752341494737,4.61050089,159.57,159.56,59.54]
[1752341496454,0.68,159.61,159.56,59.54]
[1752341496632,4.61050089,159.59,159.57,0.66]
[1752341496956,4.61050089,159.59,159.58,31.78]
[1752341497330,0.71,159.62,159.58,32.44]
[1752341497547,0.71,159.62,159.59,0.66]
[1752341497756,0.71,159.62,159.6,31.78]
[1752341498950,4.61050089,159.61,159.6,31.78]
[1752341502234,0.03,159.62,159.6,31.78]
[1752341502536,4.61050089,159.61,159.6,32.44]
[1752341505961,4.61050089,159.61,159.6,31.78]
[1752341506154,5.29050089,159.61,159.6,31.78]
[1752341506458,4.61050089,159.61,159.6,59.46]
[1752341506845,4.61050089,159.61,159.6,58.8]
[1752341511746,5.29050089,159.61,159.6,58.8]
[1752341512645,4.61050089,159.61,159.6,58.8]
[1752341513156,5.29050089,159.61,159.6,58.8]
[1752341514964,5.89768104,159.61,159.6,58.8]
[1752341515875,5.29050089,159.61,159.6,58.8]
[1752341521476,0.03,159.62,159.6,58.8]
[1752341521972,0.03,159.62,159.61,0.66]
[1752341522362,0.03,159.62,159.61,32.44]
[1752341522786,0.03,159.62,159.61,125.02050089]
[1752341523574,0.03,159.62,159.61,120.41]
[1752341523893,0.03,159.62,159.61,125.64702804]
[1752341524189,0.03,159.62,159.61,125.02050089]
[1752341527177,0.03,159.62,159.61,132.75290089]
[1752341527784,0.03,159.62,159.61,168.31758486]
[1752341528696,0.03,159.62,159.61,163.70708397]
[1752341528866,0.03,159.62,159.61,168.31758486]
[1752341531372,0.03,159.62,159.61,149.53758486]
[1752341531769,0.03,159.62,159.61,96.3624]
[1752341532076,0.03,159.62,159.61,133.45942804]
[1752341532278,0.03,159.62,159.61,132.83290089]
[1752341532678,0.03,159.62,159.61,149.61758486]
[1752341536993,0.03,159.62,159.61,145.00708397]
[1752341537295,0.03,159.62,159.61,149.61758486]
[1752341538912,0.03,159.62,159.61,132.83290089]
[1752341539598,0.03,159.62,159.61,149.61758486]
[1752341541224,0.03,159.62,159.61,168.39758486]
[1752341544297,0.03,159.62,159.61,120.49]
[1752341544596,0.03,159.62,159.61,121.11652715]
[1752341549388,0.03,159.62,159.61,120.45652715]
[1752341551211,0.03,159.62,159.61,121.15652715]